Cogmind - Beta 12 @@@ ROGUE MODE // 2023.10.22 @ 22:16:23 Player: Figgis Result: Destroyed by H-61 Shepherd with Heavy Assault Cannon Performance ------------- Evolutions (2) 1000 Regions Visited (7) 1400 Robots Destroyed (68) 340 Value Destroyed (2124) 2124 Prototype IDs (29) 580 Alien Tech Used (0) 0 Bonus (300) 300 TOTAL SCORE: 5744 Bonus ------- Aligned with FarCom 300 Cogmind --------- Core Integrity 0/550 Matter 300/300 Energy 250/265 System Corruption 0% Temperature Cool (3) Movement Walking (266) Ox2 Location -8/Materials Parts ------- > --- POWER (1) -------- Improved Ion Engine > --- PROPULSION (4) --- Aluminum Leg Improved Titanium Leg Improved Titanium Leg > --- UTILITY (4) ------ Huge Storage Unit Improved Targeting Computer Hardened Medium Armor Plating Hardened Medium Armor Plating > --- WEAPON (2) ------- Katana Katana > --- INVENTORY (25) --- Micro Nuclear Core Light Neutrino Core Reinforced Fission Core Gravmag Array Improved Heat Sink Lightpack 2.0 High-capacity Matter Pod (200) High-capacity Matter Pod (200) Hardened Medium Armor Plating EX Chip 1 EX Chip 2 EX Chip 2 Advanced Recalibrator Chronowheel Gatling Laser Improved EM Pulse Cannon Firepult 8R-AWN's Boregun Plasma Flamer Blade Trap Peak State ------------ > --- POWER ------------ Micro Nuclear Core > --- PROPULSION ------- Improved Titanium Leg Improved Titanium Leg Gravmag Array > --- UTILITY ---------- Improved Heat Sink Improved Heat Sink Huge Storage Unit Weight Redist. System > --- WEAPON ----------- 8R-AWN's Boregun Katana > --- INVENTORY -------- Micro Nuclear Core Light Neutrino Core Reinforced Fission Core Light Treads Improved Titanium Leg Lightpack 2.0 High-capacity Matter Pod High-capacity Matter Pod EX Chip 1 EX Chip 1 EX Chip 2 EX Chip 2 Advanced Recalibrator Chronowheel Improved Medium Laser Gatling Laser Improved EM Pulse Cannon Improved EM Pulse Cannon Firepult Plasma Flamer Blade Trap Blade Trap [Rating: 56] Favorites ----------- Power Ion Engine Engine Ion Engine Power Core Micro Nuclear Core Propulsion Light Treads Treads Light Treads Leg Improved Titanium Leg Hover Unit Gravmag Array Utility Large Storage Unit Device Improved Heat Sink Storage Large Storage Unit Processor Improved Targeting Computer Hackware EX Chip 1 Protection Core Shielding Weapon Improved Medium Laser Energy Gun Improved Medium Laser Energy Cannon Firepult Ballistic Gun Assault Rifle Special Weapon Plasma Flamer Slashing Weapon Katana Build | -11 -10 -10 -9 -9 -9 -8 -8 ------- Run | Jun Mat Min Mat Min Exi Min Mat Slots Evolved 4 | . . . 2 . . . 2 Power . | . . . . . . . . Propulsion 2 | . . . . . . . 2 Utility 2 | . . . 2 . . . . Weapon . | . . . . . . . . Parts Attached 71 | 3 14 2 12 2 13 . 25 Power 10 | 1 2 1 2 . 1 . 3 Engine 8 | 1 2 1 2 . 1 . 1 Core 2 | . . . . . . . 2 Reactor . | . . . . . . . . Propulsion 19 | 2 2 . 4 . 3 . 8 Treads 10 | 2 2 . 4 . 2 . . Leg 8 | . . . . . . . 8 Wheel . | . . . . . . . . Hover 1 | . . . . . 1 . . Flight . | . . . . . . . . Utility 18 | . 3 1 2 2 2 . 8 Device 8 | . 1 1 1 1 1 . 3 Storage 3 | . 2 . . . 1 . . Processor 1 | . . . . . . . 1 Hackware 1 | . . . . . . . 1 Protection 5 | . . . 1 1 . . 3 Artifact . | . . . . . . . . Weapon 24 | . 7 . 4 . 7 . 6 Energy Gun 13 | . 5 . 3 . 4 . 1 Energy Cannon 2 | . . . . . 1 . 1 Ballistic Gun 5 | . 2 . 1 . . . 2 Ballistic Cannon . | . . . . . . . . Launcher . | . . . . . . . . Special Weapon 1 | . . . . . 1 . . Impact Weapon . | . . . . . . . . Slashing Weapon 3 | . . . . . 1 . 2 Piercing Weapon . | . . . . . . . . Special Melee Weapon . | . . . . . . . . Unidentified Prototypes 2 | . 1 . . . . . 1 Parts Lost 22 | . . 1 3 . 8 . 10 Power 4 | . . 1 . . 1 . 2 Propulsion 7 | . . . 1 . 3 . 3 Utility 7 | . . . 1 . 2 . 4 Weapon 4 | . . . 1 . 2 . 1 Highest Loss Streak 8 | . . 1 1 . 8 . 2 To Critical Strikes 3 | . . . . . 3 . . Average Slot Usage (%) 89 | . 92 87 78 99 88 77 92 Engine 9 | . 13 13 11 11 11 11 . Core 1 | . . . . . . . 8 Treads 18 | . 27 28 20 22 17 . . Leg 6 | . . . . . . . 30 Device 9 | . 10 2 12 11 10 11 12 Storage 11 | . 13 14 11 11 11 11 9 Processor 1 | . . . . . . . 5 Protection 7 | . . . 1 21 18 11 4 Energy Gun 12 | . 15 14 14 22 11 11 2 Ballistic Gun 6 | . 10 14 7 . . . 4 Slashing Weapon 2 | . . . . . 3 11 9 Naked Turns . | . . . . . . . . Heaviest Build 112 | 3 30 31 35 36 112 91 107 Greatest Support 86 | 3 40 40 40 40 40 26 86 Greatest Overweight (x) 5 | . 4 . 1 . 5 3 3 Average Overweight (x) . | . . . . . 1 3 1 Largest Inventory Capacity 25 | 5 15 15 15 15 25 25 25 Average Capacity 18 | 5 13 15 15 15 23 25 25 Most Carried 25 | 5 14 15 15 15 23 21 25 Average Carried 16 | 2 7 13 14 15 17 21 24 Final Capacity 25 | 5 15 15 15 15 25 25 25 Final Carried 24 | 5 14 15 15 15 21 21 24 Class Distribution -------------------- 60% | Mutant 39% | Scavenger-Mutant Dominant Class ---------------- Mutant | -10/Materials Mutant | -10/Mines Mutant | -9/Materials Scavenger-Mutant | -9/Mines Scavenger-Mutant | -9/Exiles Scavenger-Mutant | -8/Mines Mutant | -8/Materials Resources | -11 -10 -10 -9 -9 -9 -8 -8 ----------- Run | Jun Mat Min Mat Min Exi Min Mat Matter Collected 1664 | 230 182 541 205 40 82 8 376 Remotely . | . . . . . . . . Salvage Created 2833 | . 208 175 836 98 193 . 1323 Parts 162 | . 18 7 47 3 1 . 86 Haulers Intercepted 3 | . . . 3 . . . . Recyclers Shooed 2 | . 1 . 1 . . . . Parts Field Recycled . | . . . . . . . . Retrieved Matter . | . . . . . . . . Parts Self-Destructed . | . . . . . . . . Prevented . | . . . . . . . . Kills | -11 -10 -10 -9 -9 -9 -8 -8 ------- Run | Jun Mat Min Mat Min Exi Min Mat Combat Hostiles Destroyed 67 | . 6 8 14 2 8 . 29 Melee 24 | . . . . . 1 . 23 Guns 35 | . 6 8 14 2 . . 5 Cannons 3 | . . . . . 3 . . AOE 4 | . . . . . 4 . . Classes Destroyed 10 | . 3 1 4 . . . 2 Tunneler 1 | . . . . . . . 1 Hauler 3 | . . . 3 . . . . Recycler 1 | . . . 1 . . . . Watcher 6 | . 3 . 1 . . . 2 Swarmer 13 | . 3 3 . . . . 7 Grunt 33 | . 3 2 11 2 . . 15 Duelist 2 | . . . 1 . . . 1 Sentry 6 | . . . 2 . . . 4 Specialist 2 | . . . . . . . 2 Assembled 10 | . . 3 . . 7 . . Best Kill Streak 7 | . 2 3 5 2 7 . 4 Combat Bots Only 7 | . 2 3 4 2 7 . 4 Max Kills in Single Turn 5 | . 1 1 1 1 5 . 1 Gunslinging . | . . . . . . . . Exploded 3 | . . . . . 3 . . Melee 1 | . . . . . 1 . 1 Uniques/NPCs Destroyed 1 | . . . . . 1 . . 8R-AWN (-9/Exiles) Combat | -11 -10 -10 -9 -9 -9 -8 -8 -------- Run | Jun Mat Min Mat Min Exi Min Mat Damage Taken 4659 | . 281 286 575 85 909 . 2523 Core 924 | . 68 44 81 8 165 . 558 Absorbed by Shields . | . . . . . . . . Redirected to Shielding 69 | . . . . 2 62 . 5 Regen/Repaired (Parts) 230 | . . . . . . . 230 Core Remaining (%) 63 | 100 . 55 . . . 36 . Volleys Fired 158 | . 33 24 54 5 13 . 29 Largest 2 | . 2 2 2 2 2 . 1 Hottest 250 | . 76 76 112 112 250 . 69 Shots Fired 278 | . 64 47 107 10 21 . 29 Gun 268 | . 64 47 107 10 14 . 26 Cannon 6 | . . . . . 3 . 3 Launcher . | . . . . . . . . Special 4 | . . . . . 4 . . Kinetic 122 | . 32 24 40 . . . 26 Thermal 153 | . 32 23 67 10 21 . . Explosive . | . . . . . . . . Electromagnetic 3 | . . . . . . . 3 Robot Hit Streak 10 | . 4 4 10 5 5 . 6 Robot Miss Streak 7 | . 4 2 5 1 7 . 3 Penetration Max 1 | . . . . . . . 1 Secondary Targets 1 | . . . . 1 . . . Max Gunslinging Chain 1 | . . . . 1 . . . Shots Hit Robots 240 | . 36 26 63 6 28 . 81 Core Hits 113 | . 15 11 25 3 21 . 38 Critical Kills 5 | . . 1 . . . . 4 Critical Parts Destroyed 4 | . . . . . . . 4 Critical Strikes 28 | . 3 2 3 . 2 . 18 Burn 9 | . 3 1 3 . 2 . . Destroy 9 | . . 1 . . . . 8 Sever 10 | . . . . . . . 10 Melee Attacks 111 | . . . . . 18 . 93 Impact . | . . . . . . . . Slashing 111 | . . . . . 18 . 93 Piercing . | . . . . . . . . Sneak Attacks 1 | . . . . . . . 1 Combat Hostiles . | . . . . . . . . Follow-up Attacks 3 | . . . . . . . 3 Damage Inflicted 5154 | . 508 387 1073 106 634 . 2446 Guns 2319 | . 508 387 1073 106 11 . 234 Cannons 165 | . . . . . 79 . 86 Explosions 195 | . . . . . 195 . . Melee 2471 | . . . . . 345 . 2126 Ramming . | . . . . . . . . Kinetic 1012 | . 282 182 314 . . . 234 Thermal 1585 | . 226 205 759 106 289 . . Explosive . | . . . . . . . . Electromagnetic 86 | . . . . . . . 86 Impact . | . . . . . . . . Slashing 2471 | . . . . . 345 . 2126 Piercing . | . . . . . . . . Highest Corruption . | . . . . . . . . Average Corruption . | . . . . . . . . Corruption Purged . | . . . . . . . . Corruption Blocked . | . . . . . . . . Overload Shots . | . . . . . . . . Overflow Damage 35 | . . . . . 12 . 23 Projectiles 9 | . . . . . 9 . . Explosions 3 | . . . . . 3 . . Melee 23 | . . . . . . . 23 Knockbacks . | . . . . . . . . Impact . | . . . . . . . . Kinetic . | . . . . . . . . Secondary . | . . . . . . . . Self-Inflicted Damage 38 | . . . . . 38 . . Shots 3 | . . . . . 3 . . Rammed . | . . . . . . . . Targets Rammed . | . . . . . . . . Kicked . | . . . . . . . . Crushed . | . . . . . . . . Highest Temperature 374 | . 93 193 36 57 374 . 11 Average Temperature 68 | . 26 75 16 34 168 . 4 Received Heat Transfer 1470 | . 147 93 261 51 . . 918 Siege Activations . | . . . . . . . . Robots Corrupted 1 | . . . . . . . 1 Combat Hostiles 1 | . . . . . . . 1 Parts Fried 1 | . . . . . . . 1 Impact Corruptions . | . . . . . . . . Robots Melted . | . . . . . . . . Combat Hostiles . | . . . . . . . . Parts Melted 7 | . 1 2 3 1 . . . Heat Transferred 5226 | . 839 518 1850 222 1797 . . Parts Sabotaged . | . . . . . . . . Parts Stolen . | . . . . . . . . Parts Stripped . | . . . . . . . . Power Chain Reactions . | . . . . . . . . Missiles Intercepted . | . . . . . . . . Alert | -11 -10 -10 -9 -9 -9 -8 -8 ------- Run | Jun Mat Min Mat Min Exi Min Mat Peak Influence 351 | . 134 70 285 52 . . 351 Initial 52 | . . 5 . 52 . . . Average 84 | . 61 27 137 32 . . 170 Maximum Alert Level 1 | . . . 1 . . . 1 Low Security (%) 86 | 100 100 100 71 100 . 100 64 Level 1 13 | . . . 28 . . . 35 Level 2 . | . . . . . . . . Level 3 . | . . . . . . . . Level 4 . | . . . . . . . . Level 5 . | . . . . . . . . High Security . | . . . . . . . . Max Security . | . . . . . . . . Squads Dispatched 7 | . 2 . 2 . . . 3 Investigation 2 | . 1 . 1 . . . . Extermination . | . . . . . . . . Reinforcement 5 | . 1 . 1 . . . 3 Assault . | . . . . . . . . Garrison . | . . . . . . . . Intercept . | . . . . . . . . Searches Triggered . | . . . . . . . . Construction Impeded . | . . . . . . . . Haulers Reinforced . | . . . . . . . . Active Scanning Responses . | . . . . . . . . Cargo Convoy Interrupts . | . . . . . . . . Stealth | -11 -10 -10 -9 -9 -9 -8 -8 --------- Run | Jun Mat Min Mat Min Exi Min Mat Distress Signals 12 | . 2 2 1 . . . 7 Communications Jammed . | . . . . . . . . Distress Signals . | . . . . . . . . Times Spotted 104 | . 18 9 20 2 8 . 47 Peak Tracking Total 9 | . 5 3 4 2 9 . 6 Tactical Retreats 7 | . 1 . 2 . . . 4 Traps | -11 -10 -10 -9 -9 -9 -8 -8 ------- Run | Jun Mat Min Mat Min Exi Min Mat Traps Triggered 3 | . 2 . 1 . . . . Indirectly . | . . . . . . . . Trap Hack Attempts . | . . . . . . . . Triggered . | . . . . . . . . Disarmed . | . . . . . . . . Reprogrammed . | . . . . . . . . Reused 2 | . . . . . 2 . . Traps Extracted . | . . . . . . . . Installed 2 | . . . . . 2 . . Triggered . | . . . . . . . . Most Traps Carried 4 | . . 4 4 4 4 2 2 Machines | -11 -10 -10 -9 -9 -9 -8 -8 ---------- Run | Jun Mat Min Mat Min Exi Min Mat Machines Disabled 4 | . . . 1 . 3 . . Max in Single Turn 2 | . . . 1 . 2 . . Machines Repaired . | . . . . . . . . Machines Sabotaged . | . . . . . . . . Overloaded Fab Kills . | . . . . . . . . Hacking | -11 -10 -10 -9 -9 -9 -8 -8 --------- Run | Jun Mat Min Mat Min Exi Min Mat Machines Accessed 13 | . 5 . 2 . 1 . 5 Terminals 10 | . 5 . 2 . . . 3 Fabricators . | . . . . . . . . Repair Stations 2 | . . . . . . . 2 Recycling Units . | . . . . . . . . Scanalyzers . | . . . . . . . . Garrison Access . | . . . . . . . . Total Hacks 29 | . 16 . 2 . 1 . 10 Successful 20 | . 11 . 1 . 1 . 7 Failed 9 | . 5 . 1 . . . 3 Catastrophic 4 | . 1 . 1 . . . 2 Database Lockouts . | . . . . . . . . Manual 3 | . 2 . . . 1 . . Terminals 23 | . 16 . 2 . . . 5 Fabricators . | . . . . . . . . Repair Stations 5 | . . . . . . . 5 Recycling Units . | . . . . . . . . Scanalyzers . | . . . . . . . . Garrison Access . | . . . . . . . . Terminal Hacks 16 | . 11 . 1 . 1 . 3 Record 4 | . 3 . . . . . 1 Robot Analysis 2 | . 2 . . . . . . Prototype ID Bank 2 | . 1 . . . . . 1 Branch Access Points 1 | . . . . . . . 1 Repair Station Index 1 | . 1 . . . . . . Dispatch Records 1 | . 1 . . . . . . Maintenance Status 1 | . 1 . . . . . . Surveillance Status 1 | . 1 . . . . . . Transport Status 1 | . . . 1 . . . . Hauler Manifests 1 | . 1 . . . . . . EX-Prototype ID Bank 1 | . . . . . 1 . . Fabricator Hacks . | . . . . . . . . Repair Station Hacks 4 | . . . . . . . 4 Scan Component 2 | . . . . . . . 2 Repair 2 | . . . . . . . 2 Recycling Unit Hacks . | . . . . . . . . Scanalyzer . | . . . . . . . . Garrison Access Hacks . | . . . . . . . . Unauthorized Hacks . | . . . . . . . . Terminals . | . . . . . . . . Fabricators . | . . . . . . . . Repair Stations . | . . . . . . . . Recycling Units . | . . . . . . . . Scanalyzers . | . . . . . . . . Garrison Access . | . . . . . . . . Data Cores Recovered . | . . . . . . . . Used . | . . . . . . . . Hacking Detections 11 | . 4 . 2 . . . 5 Full Trace Events 1 | . 1 . . . . . . Feedback Events . | . . . . . . . . Feedback Blocked . | . . . . . . . . Robot Schematics Acquired . | . . . . . . . . Robots Built . | . . . . . . . . Authchips . | . . . . . . . . Time . | . . . . . . . . Total Robot Build Rating . | . . . . . . . . Part Schematics Acquired . | . . . . . . . . Parts Built . | . . . . . . . . Authchips . | . . . . . . . . Time . | . . . . . . . . Total Part Build Rating . | . . . . . . . . Parts Repaired 2 | . . . . . . . 2 Time 69 | . . . . . . . 69 Parts Recycled . | . . . . . . . . Recycled Matter . | . . . . . . . . Retrieved Matter . | . . . . . . . . Retrieved Components . | . . . . . . . . Parts Scanalyzed . | . . . . . . . . Part Schematics Acquired . | . . . . . . . . Parts Damaged . | . . . . . . . . Bothacking | -11 -10 -10 -9 -9 -9 -8 -8 ------------ Run | Jun Mat Min Mat Min Exi Min Mat Used RIF Installer . | . . . . . . . . Robots Hacked . | . . . . . . . . Non-combat . | . . . . . . . . Combat . | . . . . . . . . Robot Hacks Applied . | . . . . . . . . Relay Couplers Released . | . . . . . . . . Fabnet Peak Effective % . | . . . . . . . . Robots Rewired . | . . . . . . . . Allies Hacked . | . . . . . . . . Hacks Repelled . | . . . . . . . . Allies | -11 -10 -10 -9 -9 -9 -8 -8 -------- Run | Jun Mat Min Mat Min Exi Min Mat Total Allies 1 | . . 1 . . . . . Largest Group 1 | . . 1 . . . . . Highest-Rated Group 31 | . . 31 . . . . . Highest-Rated Ally 31 | . . 31 . . . . . Total Orders . | . . . . . . . . Ally Attacks 6 | . . 6 . . . . . Total Damage 62 | . . 62 . . . . . Kills 2 | . . 2 . . . . . Allies Corrupted . | . . . . . . . . Allies Melted . | . . . . . . . . Intel | -11 -10 -10 -9 -9 -9 -8 -8 ------- Run | Jun Mat Min Mat Min Exi Min Mat Robot Analysis Total 2 | . 2 . . . . . . Derelict Logs Recovered 5 | . . 3 . 2 . . . Drone Launches . | . . . . . . . . Drone Recoveries . | . . . . . . . . Exploration | -11 -10 -10 -9 -9 -9 -8 -8 ------------- Run | Jun Mat Min Mat Min Exi Min Mat Turns Passed 6757 | 28 915 1412 829 1041 951 120 1461 Spaces Moved 2844 | 35 454 503 349 603 314 55 531 Core 85 | 35 50 . . . . . . Treads 2134 | . 404 503 349 603 275 . . Legs 469 | . . . . . . . 469 Wheels . | . . . . . . . . Hover 156 | . . . . . 39 55 62 Flight . | . . . . . . . . Fastest Speed 50 | 50 50 160 160 160 160 210 192 Average Speed 178 | 50 149 160 166 160 266 210 200 Slowest Speed 560 | 50 250 160 240 160 560 210 266 Overloaded Moves . | . . . . . . . . Propulsion Burnouts . | . . . . . . . . Robots Hopped . | . . . . . . . . Cave-ins Triggered . | . . . . . . . . Exploration Rate (%) 50 | 3 75 91 34 98 41 20 43 Regions Visited 7 Branch Regions 4 Pre-discovered Areas . | . . . . . . . . Known Exits Taken 1 | . . . . . . 1 . Unknown Exits Taken 6 | 1 1 1 1 1 1 . . Scrap Searched 4 | . . 1 . 2 . 1 . Spaces Dug . | . . . . . . . . Terrain Destroyed 20 | . . . . . 11 . 9 Melee . | . . . . . . . . Projectile 9 | . . . . . 1 . 8 AOE 10 | . . . . . 10 . . Terrain Rammed . | . . . . . . . . Walls Destroyed . | . . . . . . . . Machines Disabled . | . . . . . . . . Actions | -11 -10 -10 -9 -9 -9 -8 -8 --------- Run | Jun Mat Min Mat Min Exi Min Mat Total 4106 | 45 626 1064 493 669 384 60 765 Wait 817 | . 101 529 63 59 . 6 59 Move 2837 | 34 453 502 348 602 313 54 531 Hop . | . . . . . . . . Pick Up 71 | 8 20 5 7 . 15 . 16 Fast Attach 15 | . 1 . 2 1 . . 11 Attach 35 | 3 8 2 3 . 10 . 9 Detach 6 | . . . . . 4 . 2 Swap 21 | . 5 . 7 1 3 . 5 Drop 36 | . 5 2 9 1 6 . 13 Fire 158 | . 33 24 54 5 13 . 29 Melee 108 | . . . . . 18 . 90 Ram . | . . . . . . . . Kick . | . . . . . . . . Crush . | . . . . . . . . Escape Stasis . | . . . . . . . . Rewire . | . . . . . . . . Trap 2 | . . . . . 2 . . Miscellaneous . | . . . . . . . . Route ------- -11/Junkyard -10/Materials (discovered 2 exits: *Mat / [*Min]) -10/Mines (discovered 2 exits: *Mat x2) -9/Materials (discovered 3 exits: *Mat x2 / [*Min]) -9/Mines (discovered 3 exits: *Mat x2 / *Exi) -9/Exiles -8/Mines (discovered 2 exits: *Mat x2) -8/Materials (discovered 3 exits: [*Fac x2] / *Sto) History --------- Turn | Location | Event 12 | -11/Junkyard | Discovered new exit (range 16) 29 | -11/Junkyard | Entered Materials 313 | -10/Materials | Build established: Mutant 597 | -10/Materials | Discovered new exit (range 9) 853 | -10/Materials | Discovered new exit (range 6) 944 | -10/Materials | Entered Mines 945 | -10/Mines | Assembled infested the area 1528 | -10/Mines | Received a Mining Laser from a helpful Derelict 1615 | -10/Mines | Learned 4 Materials zone layouts 1729 | -10/Mines | Found a hidden stash of uninstalled traps 1982 | -10/Mines | Learned Materials garrison access intel 1995 | -10/Mines | Learned Materials security intel 2018 | -10/Mines | Discovered new exit (range 6) 2111 | -10/Mines | A weapon hastily lodged in a ceiling crevice suddenly fell to the ground 2264 | -10/Mines | Discovered new exit (range 16) 2356 | -10/Mines | Entered Materials 2356 | -9/Materials | Evolved 2 slots: Utility x2 2357 | -9/Materials | Identified exit to Materials 2965 | -9/Materials | Discovered exit to Materials (range 4) 3161 | -9/Materials | Discovered new exit (range 14) 3185 | -9/Materials | Entered Mines 3208 | -9/Mines | Learned Materials terminal intel 3220 | -9/Mines | Met a Derelict bent on vengeance 3281 | -9/Mines | Learned Materials stockpile data 3375 | -9/Mines | Build established: Scavenger-Mutant 3465 | -9/Mines | Discovered exit to Materials (range 15) 3731 | -9/Mines | Discovered exit to Materials (range 7) 4176 | -9/Mines | Deemed a non-threat by the Exiles lab entrance 4176 | -9/Mines | Discovered new exit (range 5) 4226 | -9/Mines | Entered Exiles 4265 | -9/Exiles | Met 8R-AWN 4292 | -9/Exiles | Met EX-HEX 4335 | -9/Exiles | Met EX-BIN 4354 | -9/Exiles | Aligned with FarCom system 4356 | -9/Exiles | Given EX-Vault access code 4393 | -9/Exiles | Opened EX-Vault 4411 | -9/Exiles | Found Firepult 4418 | -9/Exiles | Found Lightpack 2.0 4426 | -9/Exiles | Found Chronowheel 4500 | -9/Exiles | Warned to stay clear of 0b10 Research branches 4848 | -9/Exiles | Warned about trapping Exiles lab 4852 | -9/Exiles | Attacked by the Exiles 4888 | -9/Exiles | Destroyed 7 combat bots 4904 | -9/Exiles | Core integrity fell below 50% 4952 | -9/Exiles | Lost 8 parts (1p3n2u2w) 4960 | -9/Exiles | Destroyed 8R-AWN 4987 | -9/Exiles | Found Prototype Ballistic Gun 5152 | -9/Exiles | Discovered new exit (range 14) 5177 | -9/Exiles | Stole three prototypes: Lightpack 2.0, Chronowheel, Firepult 5177 | -9/Exiles | Entered Mines 5192 | -8/Mines | Discovered exit to Materials (range 6) 5278 | -8/Mines | Discovered exit to Materials (range 10) 5297 | -8/Mines | Entered Materials 5297 | -8/Materials | Evolved 2 slots: Propulsion x2 5299 | -8/Materials | Loaded intel: 12 terminal locations 5300 | -8/Materials | Loaded intel: 1 garrison access location 5324 | -8/Materials | Identified 8R-AWN's Boregun 5605 | -8/Materials | Repaired Gravmag Array 5802 | -8/Materials | Build established: Mutant 5929 | -8/Materials | Discovered new exit (range 16) 6049 | -8/Materials | Core integrity fell below 50% 6050 | -8/Materials | Repaired Imp. Titanium Leg 6147 | -8/Materials | Identified exit to Storage 6496 | -8/Materials | Discovered new exit (range 16) 6614 | -8/Materials | Core integrity fell below 20% 6758 | -8/Materials | Destroyed by H-61 Shepherd with Heavy Assault Cannon Last Messages --------------- 06646_ Katana follow-up attack on G-47 Trooper. 06646_ G-47 Trooper destroyed. 06672_ ALERT: Suspicious intruders detected, dispatching Specialist reinforcements to area. 06679_ W-25 Informer sends out distress signal. 06688_ X-57 Shotgunner destroyed. 06694_ W-25 Informer sends out distress signal. 06695_ Acquired Hrd. Medium Armor Plating. 06696_ Cooling System destroyed. 06701_ Katana follow-up attack on X-57 Shotgunner. 06702_ Mic. Nuclear Core destroyed. 06709_ Katana follow-up attack on X-57 Shotgunner. 06709_ X-57 Shotgunner Hrd. Medium Armor Plating severed. 06711_ X-57 Shotgunner destroyed. 06720_ Dropped Aluminum Leg. 06728_ Acquired Hrd. Medium Armor Plating. 06732_ Acquired 30 matter. 06752_ Slug penetrates Wall. 06754_ VSS Leg destroyed. 06754_ Knocked back. Map ----- +----------------------------------------------------+ | &[#????????# #?????????????????????????????? | | #????????# #?????????????????????????????? | | ==#????????# ########??????????????????????? | | ==#????????# #! #??????????????????????? | | [ #????????# # ![ #??????????????????????? | | [[#????????# + ![ #??????????????????????? | | ####????????# # [ #??????????????????????? | | ?????????#### # #??????????????????????? | | ?????????#*!% # ] #??????????????????????? | | ?????????#%#############??????????????????????? | | ?????????#%#??????????????????????????????????? | | ?????????#[###########????????????????????????? | | ?????????#=# #?????????#??????????????? | | ???""????#[# #??????? #??????????????? | | ???"T????+*+ %####?? #??????????????? | | #??""????### +% # #??????????????? | | #??????????# =#[ + #??????????????? | | #??????????# # # #??????????????? | | #??????????# # #?? #??????????????? | | #??????????# # #???? #??????????????? | | #??????????########### #??????#??????????????? | | #????????????????????# #?????????????????????? | | ?###?????????????????# +?????????????????????? | | #?????????????????# #????###??????????????? | | #?????????????????#u ### ##+????????????? | | ????????????????+ @ = #?????????? | | ###???????? ; % H> #?????????? | | ? ???????# ###### # #?????????? | | ?####?????#Y ??????#####???? #???????? | | ??????????##########??????????????????????????? | | ??????????????????????????????????????????????? | | ??????????????????????????????????????????????? | | ??????????????????????????????????????????????? | | | | | | | | | | | | | | | | | | | | | | | | | | | | | | | | | | | +----------------------------------------------------+ Best States ------------- Heat Dissipation 59 Energy Generation 15 Energy Capacity 265 Matter Stores 300 Matter Capacity 300 Sight Range 16 Robot Scan Range 14 Terrain Scan Density 10 Additional Mass Support 6 Armor Coverage 450 Core Shielding 20 Utility Shielding 33 Evasion (%) 50 Targeting Accuracy 6 Recoil Reduction 2 Offensive Hacking 7 Item Schematics ----------------- None Robot Schematics ------------------ None Fabricated ------------ Nothing Alien Tech Used ----------------- None Achievements -------------- None Challenges ------------ None Game ------ Seed RagnarokBlastExtractor Manual? 0 Play Time 00:39:00 Cumulative 83.3 hours Start 2023.10.22 @ 21:45:34 End 2023.10.22 @ 22:16:23 Sessions 1 Manual Loads 0 Difficulty Rogue Special Mode None Game No. 140 Rogue 137 Adventurer 3 Explorer 0 Win Type - Total 0 Types 0/0/0/0/0/0/0/0/0 Lore% 34 Gallery% 52 Achievement% 37 Wizard Run 0 Options --------- ASCII 0 Keyboard 0 Movement Mouse Keybinds 0 Fullscreen 2 Font 18/SmallcapsGlow Map View 76x50 Tactical HUD 1 Map Filters NONE Filters NONE Steam 1 RUN: 79dcf747-905e-43e9-ae82-216b69d48e02